[Event "USA-ch Junior Girls 2019"]
[Site "Saint Louis"]
[Date "2019.07.12"]
[Round "2.4"]
[White "Bykovtsev, Agata"]
[Black "Yip, Carissa"]
[Result "0-1"]
[ECO "B30"]
[WhiteElo "2012"]
[BlackElo "2285"]
[Annotator "ChessBase"]
[PlyCount "100"]
[EventDate "2019.07.09"]
[EventType "tourn"]
[EventCountry "USA"]
[SourceTitle "playchess.com"]
[Source "ChessBase"]
[SourceQuality "1"]
[TimeControl "40/5400+30:1800+30"]

1. e4 {[%emt 0:00:00]} c5 {[%emt 0:00:00]} 2. Nf3 {[%emt 0:00:00]} Nc6 {[%emt 0:00:00]} 3. Nc3 {[%emt 0:00:00]} g6 {[%emt 0:00:00]} 4. Bc4 {[%emt 0:00:00]} Bg7 {[%emt 0:00:00]} 5. O-O {[%emt 0:00:00]} e6 {[%emt 0:00:00]} 6. d4 {[%emt 0:04:03]} Nxd4 {[%emt 0:19:17]} 7. Nxd4 {[%emt 0:00:14]} cxd4 {[%emt 0:00:07]} 8. Nb5 {[%emt 0:01:02]} Qb6 {[%emt 0:00:05]} 9. c3 {[%emt 0:01:58]} Ne7 {[%emt 0:13:37]} 10. Nxd4 {[%emt 0:01:57]} a6 {[%emt 0:00:05]} 11. Bb3 {[%emt 0:05:36]} O-O {[%emt 0:00:58]} 12. Be3 {[%emt 0:02:23]} Qc7 {[%emt 0:00:10]} 13. f4 {[%emt 0:11:10]} Nc6 {[%emt 0:08:55]} 14. f5 {[%emt 0:11:38]} Na5 {[%emt 0:11:43]} 15. f6 {[%emt 0:06:40]} Bh8 {[%emt 0:00:29]} 16. Bh6 {[%emt 0:18:03]} Rd8 {[%emt 0:00:52]} 17. Qf3 {[%emt 0:04:42]} Nxb3 {[%emt 0:12:25]} 18. Nxb3 {[%emt 0:02:32]} d6 {[%emt 0:04:12]} 19. Rad1 {[%emt 0:03:13]} e5 {[%emt 0:00:33]} 20. Nd2 {[%emt 0:05:50]} Be6 {[%emt 0:00:33]} 21. b3 {[%emt 0:06:09]} d5 {[%emt 0:04:35]} 22. exd5 {[%emt 0:00:56]} Rxd5 {[%emt 0:00:35]} 23. Ne4 {[%emt 0:03:46]} Rad8 {[%emt 0:00:31]} 24. c4 {[%emt 0:03:15]} Rxd1 {[%emt 0:03:43]} 25. Rxd1 {[%emt 0:00:01]} Bf5 {[%emt 0:00:05]} 26. Rf1 {[%emt 0:04:05]} Qb6+ {[%emt 0:03:27]} 27. Be3 {[%emt 0:00:51]} Qc6 {[%emt 0:00:07]} 28. Ng3 {[%emt 0:00:55]} Qxf3 {[%emt 0:00:24]} 29. Rxf3 {[%emt 0:01:12]} Rd1+ {[%emt 0:00:06]} 30. Nf1 {[%emt 0:01:29]} Bd3 {[%emt 0:01:11]} 31. Bg5 {[%emt 0:00:13]} e4 {[%emt 0:00:21]} 32. Rf2 {[%emt 0:00:12]} Re1 {[%emt 0:00:13]} 33. Bd2 {[%emt 0:01:21]} Rxf1+ {[%emt 0:01:15]} 34. Rxf1 {[%emt 0:00:01]} Bxf1 {[%emt 0:00:08]} 35. Kxf1 {[%emt 0:00:01]} Bxf6 {[%emt 0:00:03]} 36. Bf4 {[%emt 0:00:10]} Bd4 {[%emt 0:00:30]} 37. b4 {[%emt 0:00:21]} f5 {[%emt 0:00:21]} 38. Ke2 {[%emt 0:00:31]} Kf7 {[%emt 0:00:04]} 39. Kd2 {[%emt 0:01:46]} Ke6 {[%emt 0:00:41]} 40. h3 {[%emt 0:00:00]} Be5 {[%emt 0:00:00]} 41. Bh6 {[%emt 0:04:25]} f4 {[%emt 0:02:39]} 42. Ke2 {[%emt 0:00:35]} Kf5 {[%emt 0:00:15]} 43. a4 {[%emt 0:00:48]} Bd6 {[%emt 0:00:36]} 44. c5 {[%emt 0:04:48]} Be7 {[%emt 0:00:05]} 45. Bg7 {[%emt 0:00:43]} Ke6 {[%emt 0:00:06]} 46. a5 {[%emt 0:02:53]} Kd5 {[%emt 0:00:46]} 47. Bc3 {[%emt 0:00:41]} Kc4 {[%emt 0:00:12]} 48. Be1 {[%emt 0:01:35]} g5 {[%emt 0:00:07]} 49. g3 {[%emt 0:03:15]} Bf6 {[%emt 0:00:08]} 50. h4 {[%emt 0:08:18]} Bd4 0-1

[Event "USA-ch Junior Girls 2019"]
[Site "Saint Louis"]
[Date "2019.07.12"]
[Round "2.5"]
[White "Yan, Ruiyang"]
[Black "Li, Rachael"]
[Result "1-0"]
[ECO "C42"]
[WhiteElo "1851"]
[BlackElo "1736"]
[Annotator "NA RC"]
[PlyCount "131"]
[EventDate "2019.07.09"]
[EventType "tourn"]
[EventCountry "USA"]
[SourceTitle "playchess.com"]
[Source "ChessBase"]
[SourceQuality "1"]
[TimeControl "40/5400+30:1800+30"]

1. e4 {[%emt 0:00:00]} e5 {[%emt 0:00:00]} 2. Nf3 {[%emt 0:00:00]} Nf6 {[%emt 0:00:00]} 3. Nxe5 {[%emt 0:00:00]} d6 {[%emt 0:00:00]} 4. Nf3 {[%emt 0:00:00]} Nxe4 {[%emt 0:00:00]} 5. Nc3 {[%emt 0:00:02]} Nxc3 {[%emt 0:00:00]} 6. dxc3 {[%emt 0:00:05]} Be7 {[%emt 0:00:05]} 7. Be3 {[%emt 0:00:14]} Nc6 {[%emt 0:00:07]} 8. Bd3 {[%emt 0:00:15]} Be6 {[%emt 0:00:05]} 9. Qe2 {[%emt 0:00:11]} Qd7 {[%emt 0:00:26]} 10. O-O-O {[%emt 0:00:34]} a6 {[%emt 0:02:13]} 11. Kb1 {[%emt 0:00:11]} O-O-O {[%emt 0:01:57]} 12. h3 {[%emt 0:00:27]} Kb8 {[%emt 0:00:34]} 13. Rhe1 {[%emt 0:01:28]} Bf6 {[%emt 0:01:43]} 14. Nd4 {[%emt 0:16:00]} Nxd4 {[%emt 0:08:55]} 15. cxd4 {[%emt 0:00:07]} d5 {[%emt 0:01:46]} 16. Qf3 {[%emt 0:00:20]} Qa4 17. c3 {[%emt 0:00:45]} Rd6 {[%emt 0:11:59]} 18. Bc2 {[%emt 0:01:24]} Qb5 {[%emt 0:04:11]} 19. Qe2 {[%emt 0:01:39]} Qxe2 {[%emt 0:04:12]} 20. Rxe2 {[%emt 0:00:02]} Rd7 {[%emt 0:02:54]} 21. Rde1 {[%emt 0:00:54]} Re7 {[%emt 0:00:37]} 22. Bf4 {[%emt 0:09:05]} Rhe8 {[%emt 0:00:49]} 23. Kc1 {[%emt 0:00:27]} h6 {[%emt 0:00:38]} 24. Be5 {[%emt 0:01:58]} Bd7 {[%emt 0:03:41]} 25. Bd3 {[%emt 0:04:31]} Bxe5 {[%emt 0:02:53]} 26. dxe5 {[%emt 0:01:15]} c5 {[%emt 0:05:11]} 27. f4 {[%emt 0:01:08]} h5 {[%emt 0:04:05]} 28. Kd2 {[%emt 0:01:12]} Kc7 {[%emt 0:00:12]} 29. b4 {[%emt 0:01:13]} b6 {[%emt 0:03:10]} 30. f5 {[%emt 0:04:05]} d4 {[%emt 0:06:00]} 31. cxd4 {[%emt 0:00:12]} cxd4 {[%emt 0:00:17]} 32. h4 {[%emt 0:13:01]} Bc6 {[%emt 0:07:48]} 33. f6 {[%emt 0:04:27]} gxf6 {[%emt 0:00:59]} 34. exf6 {[%emt 0:00:05]} Rxe2+ {[%emt 0:01:45]} 35. Rxe2 {[%emt 0:00:09]} Rxe2+ {[%emt 0:02:18]} 36. Bxe2 {[%emt 0:00:05]} Bxg2 {[%emt 0:02:14]} 37. Bxh5 {[%emt 0:03:49]} Kd6 {[%emt 0:00:52]} 38. Bxf7 {[%emt 0:00:23]} Ke5 {[%emt 0:00:08]} 39. Bc4 {[%emt 0:00:07]} Kxf6 {[%emt 0:00:12]} 40. Bxa6 {[%emt 0:00:00]} Kg6 {[%emt 0:00:00]} 41. Be2 {[%emt 0:00:25]} Bc6 {[%emt 0:04:10]} 42. Bd1 {[%emt 0:00:54]} Kf5 {[%emt 0:01:04]} 43. a4 {[%emt 0:00:25]} Bb7 {[%emt 0:00:35]} 44. h5 {[%emt 0:00:14]} Bc6 {[%emt 0:00:16]} 45. a5 {[%emt 0:00:07]} bxa5 {[%emt 0:00:04]} 46. bxa5 {[%emt 0:00:06]} Bb7 {[%emt 0:00:18]} 47. Kd3 {[%emt 0:00:12]} Ke5 {[%emt 0:00:57]} 48. h6 {[%emt 0:00:21]} Bc6 {[%emt 0:02:21]} 49. Kc4 {[%emt 0:01:37]} Kf6 {[%emt 0:04:58]} 50. Kxd4 {[%emt 0:00:37]} Bb7 {[%emt 0:00:40]} 51. Bc2 {[%emt 0:00:10]} Bc8 {[%emt 0:00:14]} 52. Kc5 {[%emt 0:00:06]} Ba6 {[%emt 0:00:06]} 53. Kb6 {[%emt 0:00:05]} Bc8 {[%emt 0:00:05]} 54. Bd3 {[%emt 0:00:08]} Kf7 {[%emt 0:00:25]} 55. Kc7 {[%emt 0:00:04]} Bh3 {[%emt 0:00:11]} 56. a6 {[%emt 0:00:06]} Bg2 {[%emt 0:00:14]} 57. a7 {[%emt 0:00:03]} Kg8 {[%emt 0:00:07]} 58. Bb5 {[%emt 0:00:07]} Kh7 {[%emt 0:00:14]} 59. Bc6 {[%emt 0:00:04]} Bh3 {[%emt 0:00:06]} 60. a8=Q {[%emt 0:00:05]} Kg6 {[%emt 0:00:08]} 61. Be4+ {[%emt 0:00:12]} Kh5 {[%emt 0:04:06]} 62. h7 {[%emt 0:00:07]} Kg5 {[%emt 0:00:08]} 63. h8=Q {[%emt 0:00:10]} Be6 {[%emt 0:00:07]} 64. Qe5+ {[%emt 0:00:06]} Kg4 {[%emt 0:00:08]} 65. Bf3+ {[%emt 0:00:05]} Kh3 {[%emt 0:00:08]} 66. Qah8# {[%emt 0:00:04]} 1-0

[Event "USA-ch Junior Girls 2019"]
[Site "Saint Louis"]
[Date "2019.07.13"]
[Round "3.2"]
[White "Yip, Carissa"]
[Black "Yan, Ruiyang"]
[Result "1/2-1/2"]
[ECO "B90"]
[WhiteElo "2285"]
[BlackElo "1851"]
[Annotator "ChessBase"]
[PlyCount "101"]
[EventDate "2019.07.09"]
[EventType "tourn"]
[EventCountry "USA"]
[SourceTitle "playchess.com"]
[Source "ChessBase"]
[SourceQuality "1"]
[TimeControl "40/5400+30:1800+30"]

1. e4 {[%emt 0:00:00]} c5 {[%emt 0:00:00]} 2. Nf3 {[%emt 0:00:00]} d6 {[%emt 0:00:00]} 3. d4 {[%emt 0:00:00]} cxd4 {[%emt 0:00:00]} 4. Nxd4 {[%emt 0:00:00]} Nf6 {[%emt 0:00:00]} 5. Nc3 {[%emt 0:00:00]} a6 {[%emt 0:00:00]} 6. Be3 {[%emt 0:00:00]} e5 {[%emt 0:00:02]} 7. Nf3 {[%emt 0:00:00]} Be7 {[%emt 0:00:07]} 8. Bc4 {[%emt 0:00:11]} O-O {[%emt 0:01:12]} 9. O-O {[%emt 0:00:06]} Nbd7 {[%emt 0:00:33]} 10. a4 {[%emt 0:00:29]} b6 {[%emt 0:00:16]} 11. Nd2 {[%emt 0:24:08]} Bb7 {[%emt 0:01:38]} 12. f3 {[%emt 0:00:33]} Qb8 {[%emt 0:03:12]} 13. Qe2 {[%emt 0:01:36]} Rc8 {[%emt 0:00:58]} 14. Rfd1 {[%emt 0:02:40]} Nc5 {[%emt 0:06:14]} 15. Kh1 {[%emt 0:00:27]} Qc7 {[%emt 0:00:29]} 16. Qf2 {[%emt 0:02:08]} Rd8 {[%emt 0:02:07]} 17. b4 {[%emt 0:15:06]} Ncd7 {[%emt 0:00:47]} 18. Rab1 {[%emt 0:00:12]} Rdc8 {[%emt 0:06:50]} 19. Rb3 {[%emt 0:01:46]} Bc6 {[%emt 0:17:32]} 20. Rc1 {[%emt 0:00:49]} a5 {[%emt 0:05:39]} 21. bxa5 {[%emt 0:01:48]} Rxa5 {[%emt 0:01:12]} 22. Bxb6 {[%emt 0:24:01]} Nxb6 {[%emt 0:00:15]} 23. Qxb6 {[%emt 0:00:11]} Qxb6 {[%emt 0:00:19]} 24. Rxb6 {[%emt 0:00:03]} Bxa4 {[%emt 0:00:30]} 25. Rb7 {[%emt 0:00:11]} Kf8 {[%emt 0:03:15]} 26. Ra1 {[%emt 0:00:46]} Bc6 {[%emt 0:00:20]} 27. Rxa5 {[%emt 0:00:04]} Bxb7 {[%emt 0:00:08]} 28. Ra7 {[%emt 0:00:04]} Bc6 {[%emt 0:00:16]} 29. Bb3 {[%emt 0:01:36]} Ra8 {[%emt 0:01:14]} 30. Rxa8+ {[%emt 0:00:54]} Bxa8 {[%emt 0:00:11]} 31. Nc4 {[%emt 0:00:07]} Bc6 {[%emt 0:00:30]} 32. Kg1 {[%emt 0:00:35]} Nd7 {[%emt 0:01:21]} 33. Na5 {[%emt 0:00:11]} Nb8 {[%emt 0:01:24]} 34. Bd5 {[%emt 0:00:18]} Bxd5 {[%emt 0:00:32]} 35. Nxd5 {[%emt 0:00:05]} Ke8 {[%emt 0:00:59]} 36. Kf2 {[%emt 0:00:17]} Kd7 {[%emt 0:00:19]} 37. Ke2 {[%emt 0:01:12]} Bd8 {[%emt 0:00:10]} 38. Nc4 {[%emt 0:02:08]} Nc6 {[%emt 0:00:15]} 39. c3 {[%emt 0:00:05]} Ke6 {[%emt 0:00:15]} 40. Kd3 {[%emt 0:00:00]} f5 {[%emt 0:00:00]} 41. Nce3 {[%emt 0:01:47]} f4 {[%emt 0:01:07]} 42. Nc2 {[%emt 0:00:43]} Na5 {[%emt 0:02:06]} 43. Na3 {[%emt 0:03:22]} Kd7 {[%emt 0:01:55]} 44. Nc4 {[%emt 0:00:53]} Nb3 {[%emt 0:00:29]} 45. Nb2 {[%emt 0:11:04]} Na5 {[%emt 0:00:16]} 46. Nd1 {[%emt 0:02:56]} Ke6 {[%emt 0:00:43]} 47. Nf2 {[%emt 0:00:18]} Bh4 {[%emt 0:00:41]} 48. Nh1 {[%emt 0:01:03]} Bd8 {[%emt 0:00:19]} 49. g3 {[%emt 0:00:22]} g5 {[%emt 0:00:14]} 50. Nf2 {[%emt 0:00:05]} h5 {[%emt 0:01:03]} 51. g4 {[%emt 0:05:46]} 1/2-1/2

[Event "USA-ch Junior Girls 2019"]
[Site "Saint Louis"]
[Date "2019.07.13"]
[Round "3.3"]
[White "Wu, Rochelle"]
[Black "Bykovtsev, Agata"]
[Result "1-0"]
[ECO "B90"]
[WhiteElo "2085"]
[BlackElo "2012"]
[Annotator "NA"]
[PlyCount "61"]
[EventDate "2019.07.09"]
[EventType "tourn"]
[EventCountry "USA"]
[SourceTitle "playchess.com"]
[Source "ChessBase"]
[SourceQuality "1"]
[TimeControl "40/5400+30:1800+30"]

1. e4 {[%emt 0:00:00]} c5 {[%emt 0:00:00]} 2. Nf3 {[%emt 0:00:00]} d6 {[%emt 0:00:00]} 3. d4 {[%emt 0:00:00]} cxd4 {[%emt 0:00:00]} 4. Nxd4 {[%emt 0:00:05]} Nf6 {[%emt 0:00:00]} 5. Nc3 {[%emt 0:00:07]} a6 {[%emt 0:00:00]} 6. h3 {[%emt 0:00:06]} e6 {[%emt 0:00:00]} 7. g4 {[%emt 0:00:09]} Be7 {[%emt 0:00:17]} 8. g5 {[%emt 0:00:08]} Nfd7 {[%emt 0:00:07]} 9. Be3 {[%emt 0:00:09]} Nc6 {[%emt 0:02:05]} 10. h4 {[%emt 0:00:13]} Nxd4 {[%emt 0:10:21]} 11. Qxd4 {[%emt 0:00:34]} O-O {[%emt 0:00:53]} 12. Qd2 {[%emt 0:01:34]} b5 {[%emt 0:03:01]} 13. a3 {[%emt 0:01:12]} Ne5 {[%emt 0:07:27]} 14. O-O-O {[%emt 0:01:40]} Rb8 {[%emt 0:04:52]} 15. f4 {[%emt 0:05:33]} Nc4 {[%emt 0:04:27]} 16. Qe1 {[%emt 0:04:22]} Nxe3 {[%emt 0:11:01]} 17. Qxe3 {[%emt 0:00:28]} b4 {[%emt 0:01:12]} 18. axb4 {[%emt 0:01:55]} Rxb4 {[%emt 0:00:31]} 19. Bd3 {[%emt 0:09:41]} Bb7 {[%emt 0:15:02]} 20. f5 {[%emt 0:07:14]} exf5 {[%emt 0:06:50]} 21. exf5 {[%emt 0:00:52]} Bxh1 {[%emt 0:04:12]} 22. Rxh1 {[%emt 0:01:45]} Re8 {[%emt 0:05:54]} 23. Nd5 {[%emt 0:02:23]} Rxh4 {[%emt 0:04:57]} 24. Rg1 {[%emt 0:00:04]} Ra4 {[%emt 0:09:30]} 25. Kd2 {[%emt 0:08:55]} Bf8 {[%emt 0:03:17]} 26. Nf6+ {[%emt 0:01:02]} gxf6 {[%emt 0:01:10]} 27. gxf6+ {[%emt 0:00:07]} Kh8 {[%emt 0:00:10]} 28. Qg5 {[%emt 0:00:20]} Qa5+ {[%emt 0:05:38]} 29. c3 {[%emt 0:00:18]} Re2+ {[%emt 0:00:25]} 30. Bxe2 {[%emt 0:00:39]} Rd4+ {[%emt 0:01:00]} 31. Kc2 {[%emt 0:00:10]} 1-0

[Event "USA-ch Junior Girls 2019"]
[Site "Saint Louis"]
[Date "2019.07.13"]
[Round "3.4"]
[White "Samadashvili, Martha"]
[Black "Zilajeva, Veronika"]
[Result "1-0"]
[ECO "C11"]
[WhiteElo "2124"]
[BlackElo "1855"]
[Annotator "ChessBase"]
[PlyCount "79"]
[EventDate "2019.07.09"]
[EventType "tourn"]
[EventCountry "USA"]
[SourceTitle "playchess.com"]
[Source "ChessBase"]
[SourceQuality "1"]
[TimeControl "40/5400+30:1800+30"]

1. e4 {[%emt 0:00:00]} e6 {[%emt 0:00:00]} 2. d4 {[%emt 0:00:00]} d5 {[%emt 0:00:00]} 3. Nc3 {[%emt 0:00:00]} Nf6 {[%emt 0:00:00]} 4. e5 {[%emt 0:00:00]} Nfd7 {[%emt 0:00:00]} 5. Nce2 {[%emt 0:00:07]} c5 {[%emt 0:00:01]} 6. c3 {[%emt 0:00:03]} Nc6 {[%emt 0:00:07]} 7. a3 {[%emt 0:00:29]} Qb6 {[%emt 0:00:38]} 8. b4 {[%emt 0:00:50]} cxd4 {[%emt 0:01:49]} 9. cxd4 {[%emt 0:00:03]} f6 {[%emt 0:02:17]} 10. f4 {[%emt 0:05:48]} Be7 {[%emt 0:02:07]} 11. Nf3 {[%emt 0:01:41]} O-O {[%emt 0:05:47]} 12. Nc3 {[%emt 0:18:23]} fxe5 {[%emt 0:14:11]} 13. Na4 {[%emt 0:07:12]} Qc7 {[%emt 0:03:17]} 14. dxe5 {[%emt 0:11:10]} Ndxe5 {[%emt 0:14:41]} 15. Be2 {[%emt 0:03:28]} Nxf3+ {[%emt 0:05:51]} 16. Bxf3 {[%emt 0:03:14]} Bf6 {[%emt 0:00:51]} 17. Rb1 {[%emt 0:03:18]} Nd4 {[%emt 0:00:57]} 18. O-O {[%emt 0:01:33]} Bd7 {[%emt 0:06:32]} 19. Nc5 {[%emt 0:02:40]} b6 {[%emt 0:00:54]} 20. Nxd7 {[%emt 0:05:23]} Nxf3+ {[%emt 0:00:59]} 21. Rxf3 {[%emt 0:01:16]} Qxd7 {[%emt 0:00:09]} 22. Rd3 {[%emt 0:02:07]} Rad8 {[%emt 0:02:13]} 23. Be3 {[%emt 0:03:15]} g6 {[%emt 0:06:19]} 24. Bd4 {[%emt 0:04:16]} Qf7 {[%emt 0:01:04]} 25. Qd2 {[%emt 0:04:51]} Rc8 {[%emt 0:01:28]} 26. Re1 {[%emt 0:03:25]} Rc4 {[%emt 0:03:37]} 27. g3 {[%emt 0:03:12]} Rfc8 {[%emt 0:00:47]} 28. Qe3 {[%emt 0:01:15]} Bxd4 {[%emt 0:03:01]} 29. Rxd4 {[%emt 0:00:05]} Rxd4 {[%emt 0:00:13]} 30. Qxd4 {[%emt 0:00:09]} Qf5 {[%emt 0:00:39]} 31. Qd1 {[%emt 0:04:49]} Kf7 {[%emt 0:01:15]} 32. Qa4 {[%emt 0:08:18]} Rc7 {[%emt 0:00:36]} 33. Qd1 {[%emt 0:01:35]} Qc2 {[%emt 0:03:19]} 34. Qg4 {[%emt 0:00:14]} Rc6 {[%emt 0:02:03]} 35. Qh4 {[%emt 0:00:32]} h5 {[%emt 0:01:25]} 36. Qd8 {[%emt 0:01:01]} Rc7 {[%emt 0:02:09]} 37. Qh8 {[%emt 0:00:54]} Rc8 {[%emt 0:09:26]} 38. Qh7+ {[%emt 0:00:06]} Kf6 {[%emt 0:00:06]} 39. f5 {[%emt 0:00:26]} Kxf5 {[%emt 0:01:30]} 40. Qf7+ {[%emt 0:00:00]} 1-0

[Event "USA-ch Junior Girls 2019"]
[Site "Saint Louis"]
[Date "2019.07.14"]
[Round "4.4"]
[White "Yan, Ruiyang"]
[Black "Wu, Rochelle"]
[Result "0-1"]
[ECO "B92"]
[WhiteElo "1851"]
[BlackElo "2085"]
[Annotator "NA RC"]
[PlyCount "74"]
[EventDate "2019.07.09"]
[EventType "tourn"]
[EventCountry "USA"]
[SourceTitle "playchess.com"]
[Source "ChessBase"]
[SourceQuality "1"]
[TimeControl "40/5400+30:1800+30"]

1. e4 {[%emt 0:00:00]} c5 {[%emt 0:00:00]} 2. Nf3 {[%emt 0:00:00]} d6 {[%emt 0:00:00]} 3. d4 {[%emt 0:00:00]} cxd4 {[%emt 0:00:00]} 4. Nxd4 {[%emt 0:00:00]} Nf6 {[%emt 0:00:00]} 5. Nc3 {[%emt 0:00:00]} a6 {[%emt 0:00:00]} 6. Be2 {[%emt 0:00:00]} e5 {[%emt 0:00:00]} 7. Nf3 {[%emt 0:00:00]} Be7 {[%emt 0:00:12]} 8. Bg5 {[%emt 0:00:04]} Be6 {[%emt 0:00:55] B92: Sicilian Najdorf: 6 Be2} 9. O-O {[%emt 0:00:08]} (9. Bxf6 Bxf6 10. O-O O-O 11. Qd2 Be7 12. Nd5 Nd7 13. Nxe7+ Qxe7 14. Rfd1 Rac8 15. c3 Rc6 16. Ng5 Nf6 17. Nxe6 fxe6 18. Qe3 Qc7 {½-½ (45) Harikrishna,P (2730)-Shankland,S (2731) Prague 2019}) 9... Nbd7 {[%emt 0:02:57]} 10. Bxf6 {[%emt 0:06:19]} Nxf6 {[%emt 0:00:07]} 11. Ng5 {[%emt 0:00:47]} O-O {[%emt 0:02:13]} 12. Nxe6 {[%emt 0:00:23]} fxe6 {[%emt 0:00:04]} 13. Bc4 {[%emt 0:06:43]} Qc8 {[%emt 0:05:05]} 14. Bb3 {[%emt 0:00:33]} Kh8 $146 {[%emt 0:02:05]} ({Predecessor:} 14... b5 15. a3 Kh8 16. Qe2 {½-½ (16) Grus,J (1850)-Smetak,V (1985) Klatovy 2000}) 15. a4 {[%emt 0:01:13]} Rd8 {[%emt 0:11:17]} 16. Qe2 {[%emt 0:01:12]} Qd7 {[%emt 0:05:25]} 17. a5 {[%emt 0:02:48]} Bf8 {[%emt 0:04:50]} 18. Na4 {[%emt 0:08:41]} Qf7 {[%emt 0:12:30]} 19. Nb6 {[%emt 0:00:32]} Rab8 $16 {[%emt 0:00:04]} 20. Rfd1 {[%emt 0:21:12]} g6 {[%emt 0:14:36]} 21. f3 {[%emt 0:08:07]} Bh6 {[%emt 0:05:39]} 22. Kh1 {[%emt 0:01:38]} Nh5 {[%emt 0:03:13]} 23. Nc4 {[%emt 0:02:30]} Qe7 {[%emt 0:04:56]} 24. g3 {[%emt 0:05:45]} Bg7 {[%emt 0:02:35]} 25. Nb6 {[%emt 0:02:10]} Rf8 {[%emt 0:03:23]} 26. Rd3 {[%emt 0:01:40]} Rbd8 {[%emt 0:01:38]} 27. Rad1 {[%emt 0:01:11]} Qg5 {[%emt 0:07:38]} 28. Qd2 {[%emt 0:03:33]} Qf6 {[%emt 0:00:11]} 29. Qe3 {[%emt 0:04:15]} Qe7 {[%emt 0:05:41]} 30. Nc4 {[%emt 0:04:25]} d5 {[%emt 0:00:05]} 31. exd5 {[%emt 0:00:07]} exd5 {[%emt 0:00:27]} 32. Rxd5 {[%emt 0:00:07]} Rxd5 {[%emt 0:00:22]} 33. Rxd5 {[%emt 0:00:05]} Nf6 {[%emt 0:03:37]} 34. Rxe5 {[%emt 0:01:49]} Qd7 {[%emt 0:00:03]} 35. Nb6 {[%emt 0:03:35]} Qd1+ {[%emt 0:00:39]} 36. Kg2 {[%emt 0:00:05]} Ng4 {[%emt 0:00:31]} 37. Qe2 {[%emt 0:00:04]} Bxe5 0-1

[Event "USA-ch Junior Girls 2019"]
[Site "Saint Louis"]
[Date "2019.07.15"]
[Round "5.2"]
[White "Wu, Rochelle"]
[Black "Li, Rachael"]
[Result "1/2-1/2"]
[ECO "E81"]
[WhiteElo "2085"]
[BlackElo "1736"]
[Annotator "NA RC"]
[PlyCount "68"]
[EventDate "2019.07.09"]
[EventType "tourn"]
[EventCountry "USA"]
[SourceTitle "playchess.com"]
[Source "ChessBase"]
[SourceQuality "1"]
[TimeControl "40/5400+30:1800+30"]

1. d4 {[%emt 0:00:00]} Nf6 {[%emt 0:00:00]} 2. c4 {[%emt 0:00:00]} g6 {[%emt 0:00:00]} 3. f3 {[%emt 0:00:00]} Bg7 {[%emt 0:00:00]} 4. e4 {[%emt 0:00:00]} d6 {[%emt 0:00:00]} 5. Nc3 {[%emt 0:00:10]} O-O {[%emt 0:00:05]} 6. Be3 {[%emt 0:00:06]} c5 {[%emt 0:00:09]} 7. Nge2 {[%emt 0:00:26]} Nbd7 {[%emt 0:00:12]} 8. d5 {[%emt 0:00:11]} Ne5 {[%emt 0:00:26]} 9. Ng3 {[%emt 0:00:12]} e6 {[%emt 0:00:39]} 10. a4 {[%emt 0:00:56]} exd5 {[%emt 0:00:10]} 11. cxd5 {[%emt 0:00:06]} a6 {[%emt 0:00:21]} 12. Be2 {[%emt 0:01:27]} Bd7 {[%emt 0:03:58]} 13. h3 {[%emt 0:03:26]} b5 {[%emt 0:05:38]} 14. f4 {[%emt 0:03:29]} Nc4 {[%emt 0:01:34]} 15. Bxc4 {[%emt 0:00:07]} bxc4 {[%emt 0:00:09]} 16. O-O {[%emt 0:02:07]} Qe7 {[%emt 0:12:19]} 17. Qe2 {[%emt 0:09:45]} Rfb8 {[%emt 0:05:34]} 18. Rae1 {[%emt 0:16:19]} h5 {[%emt 0:13:11]} 19. Bc1 {[%emt 0:03:25]} h4 {[%emt 0:04:00]} 20. Nh1 {[%emt 0:00:05]} Nh5 {[%emt 0:05:22]} 21. e5 {[%emt 0:12:38]} Bf5 {[%emt 0:05:59]} 22. Rf3 {[%emt 0:13:04]} Re8 {[%emt 0:08:14]} 23. Nf2 {[%emt 0:06:01]} dxe5 {[%emt 0:03:54]} 24. fxe5 {[%emt 0:01:06]} Bxe5 {[%emt 0:02:55]} 25. Rxf5 {[%emt 0:03:15]} gxf5 {[%emt 0:07:19]} 26. Qxh5 {[%emt 0:00:07]} Bh2+ {[%emt 0:00:10]} 27. Kxh2 {[%emt 0:02:11]} Qd6+ {[%emt 0:00:15]} 28. Re5 {[%emt 0:00:05]} Qxe5+ {[%emt 0:00:27]} 29. Kh1 {[%emt 0:00:11]} Qe1+ {[%emt 0:00:26]} 30. Kh2 {[%emt 0:00:06]} Qe5+ {[%emt 0:04:16]} 31. Kh1 {[%emt 0:00:03]} Qe1+ {[%emt 0:00:03]} 32. Kh2 {[%emt 0:00:06]} Qxc1 {[%emt 0:05:20]} 33. Qxf5 {[%emt 0:00:05]} Qe3 {[%emt 0:00:33]} 34. Nfe4 {[%emt 0:01:25]} Kf8 {[%emt 0:01:29]} 1/2-1/2